bitfinex/quotes_ETHUSD_20250620
["timestamp","ask_amount","ask_price","bid_price","bid_amount"]
[1750447184566,22.68016328,2409.5,2409.2,4.15065502]
[1750447184780,22.297,2409.5,2409.3,4.15058309]
[1750447184993,2.87713364,2409.4,2409.2,4.15073901]
[1750447185278,0.0624,2409.2,2408.8,4.15138955]
[1750447185478,12.5564,2409.0,2408.8,4.15138955]
[1750447185647,10.18011361,2408.9,2408.7,4.15151047]
[1750447185844,2.494,2408.7,2408.1,0.7616]
[1750447186079,7.647,2408.6,2408.5,4.15185082]
[1750447186447,8.03005458,2408.6,2408.5,4.15185082]
[1750447186880,10.0,2409.0,2408.5,4.15185082]
[1750447187079,18.41112088,2408.9,2408.8,4.1514447]
[1750447187283,18.41113164,2408.9,2408.8,4.1514447]
[1750447187462,18.4111407,2408.9,2408.8,4.1514447]
[1750447187776,7.645,2408.9,2408.8,4.1514447]
[1750447189080,8.5067,2408.9,2408.6,4.15178942]
[1750447189377,8.4476,2408.9,2408.6,4.15178942]
[1750447189676,0.38238614,2408.8,2408.6,4.15178942]
[1750447189852,9.794,2408.7,2408.6,4.15178942]
[1750447190253,9.8531,2408.7,2408.4,4.15204614]
[1750447190587,10.82382412,2408.6,2408.2,4.15235854]
[1750447190787,8.0243399,2408.5,2408.3,4.15229929]
[1750447190972,7.642,2408.5,2408.2,4.15238561]
[1750447191285,0.8026,2408.4,2408.3,4.1522899]
[1750447191581,0.8026,2408.4,2408.2,4.15238561]
[1750447191582,0.8026,2408.4,2408.2,4.15237379]
[1750447191784,7.642,2408.3,2408.1,4.15252699]
[1750447192287,7.642,2408.3,2408.2,4.15247902]
[1750447192490,7.641,2408.3,2408.2,4.15247902]
[1750447192662,7.641,2408.3,2408.2,4.21417902]
[1750447192871,2.15,2408.8,2408.7,4.15153729]
[1750447193069,9.791,2408.8,2408.7,4.15153729]
[1750447193268,9.791,2408.8,2408.5,4.15189974]
[1750447193580,9.791,2408.8,2408.7,4.15161705]
[1750447194562,9.791,2408.8,2408.5,4.15189974]
[1750447194563,9.8501,2408.8,2408.6,4.15170577]
[1750447195103,9.791,2408.8,2408.6,4.15170577]
[1750447195489,9.791,2408.8,2408.7,4.15161705]
[1750447195993,9.791,2408.8,2408.6,4.15169701]
[1750447197826,9.791,2408.8,2408.7,4.15161705]
[1750447200398,9.791,2408.8,2408.6,4.15165912]
[1750447201060,9.8501,2408.8,2408.5,4.15185743]
[1750447201255,9.8501,2408.8,2408.6,4.15176303]
[1750447201483,9.8501,2408.8,2408.5,4.15186526]
[1750447201881,2.494,2408.7,2408.6,4.15178942]
[1750447202081,12.494,2408.7,2408.3,4.15221821]
[1750447202293,2.494,2408.4,2407.8,4.21472212]
[1750447202609,7.6901,2408.6,2408.2,4.21407464]
[1750447202610,7.631,2408.3,2408.2,4.21407464]
[1750447202817,2.494,2408.6,2408.4,4.15200057]
[1750447203003,17.63,2408.5,2408.4,4.15200057]
[1750447203171,10.0,2408.4,2408.3,4.15222986]
[1750447203497,10.124,2408.5,2408.0,4.15273405]
[1750447203714,2.494,2408.3,2408.2,4.15247902]
[1750447203879,20.124,2408.3,2408.2,4.15247902]
[1750447204604,10.0,2408.2,2408.1,4.15257137]
[1750447204818,2.494,2408.0,2407.4,0.0617]
[1750447205119,7.629,2407.9,2407.8,4.15301887]
[1750447207900,10.123,2407.9,2407.4,0.0617]
[1750447208096,10.123,2407.9,2407.7,4.15331364]
[1750447208499,10.123,2407.9,2407.8,4.15316886]
[1750447210292,2.135,2408.4,2408.3,4.1523066]
[1750447210499,9.758,2408.4,2408.3,4.1523066]
[1750447211201,0.8173,2408.9,2408.7,4.15149956]
[1750447211378,9.757,2408.8,2408.7,4.15161705]
[1750447211579,0.8173,2408.9,2408.8,4.1514447]
[1750447211793,10.5743,2408.9,2408.8,4.1514447]
[1750447211991,20.5743,2408.9,2408.8,4.1514447]
[1750447212291,23.0683,2408.9,2408.8,4.1514447]
[1750447212491,2.135,2409.0,2408.9,4.15120019]
[1750447212678,10.79386298,2409.0,2408.6,4.15172104]
[1750447212897,9.9705,2409.0,2408.8,4.15143856]
[1750447213389,10.0,2408.9,2408.8,4.15143856]
[1750447213587,12.494,2408.9,2408.8,4.15143856]
[1750447214417,12.494,2408.9,2408.7,4.15155668]
[1750447214624,10.114,2408.8,2408.7,4.15155668]
[1750447217094,7.62,2408.8,2408.7,4.15155668]
[1750447217477,7.62,2408.8,2408.6,4.15170198]
[1750447217678,7.62,2408.8,2408.6,4.15178942]
[1750447218079,7.62,2408.8,2408.7,4.15161705]
[1750447219482,7.62,2408.8,2408.7,4.21211705]
[1750447219777,7.62,2408.8,2408.7,4.15161705]
[1750447220031,7.62,2408.8,2408.7,4.21211705]
[1750447220827,2.135,2409.0,2408.9,4.15127236]
[1750447221046,12.135,2409.0,2408.9,4.21177236]
[1750447221346,19.745,2409.0,2408.9,4.15127236]
[1750447225499,19.745,2409.0,2408.5,0.7884]
[1750447225701,19.745,2409.0,2408.2,4.15234972]
[1750447225702,30.0,2408.8,2408.2,4.15234972]
[1750447225939,10.0,2408.6,2408.5,4.15186739]
[1750447227253,12.494,2408.6,2408.5,4.15186739]
[1750447228267,2.118,2408.9,2408.5,4.1519618]
[1750447228440,12.118,2408.9,2408.8,4.1514447]
[1750447228755,19.719,2408.9,2408.8,4.1514447]
[1750447229571,19.719,2408.9,2408.4,0.8329]
[1750447229572,22.2729,2408.9,2408.4,4.15211133]
[1750447229875,22.2729,2408.9,2408.5,4.15189061]
[1750447229876,0.0599,2408.8,2408.5,4.15189061]
[1750447230072,10.093,2408.7,2408.6,4.1517858]
[1750447230252,10.093,2408.7,2408.5,4.15186342]
[1750447230570,12.494,2408.6,2408.5,4.15186342]
[1750447230723,12.494,2408.6,2408.4,4.15203229]
[1750447230935,10.092,2408.5,2408.1,4.15250778]
[1750447231226,10.092,2408.5,2408.3,4.1523066]
[1750447231462,10.092,2408.5,2408.2,4.15239116]
[1750447231667,10.1519,2408.5,2408.2,4.15239116]
[1750447232554,10.1519,2408.5,2408.1,4.15261708]
[1750447232754,10.1519,2408.5,2408.2,4.15247051]
[1750447232960,10.092,2408.5,2408.2,4.15247051]
[1750447233385,10.092,2408.5,2407.9,0.0605]
[1750447233662,12.5539,2408.3,2408.0,4.15281123]
[1750447233824,22.207,2408.2,2408.0,4.15281123]
[1750447234029,22.207,2408.2,2408.1,4.15265146]
[1750447234561,22.207,2408.2,2407.8,4.15316886]
[1750447234731,22.207,2408.2,2408.1,4.15265146]
[1750447235454,2.118,2408.4,2408.3,4.1523066]
[1750447235641,12.118,2408.4,2408.3,4.2128066]
[1750447235843,19.71,2408.4,2408.3,4.9700066]
[1750447236194,10.797,2409.3,2409.2,4.15075543]
[1750447236341,10.797,2409.3,2409.0,4.15101795]
[1750447236342,2.494,2409.2,2409.0,4.15101795]
[1750447236694,17.591,2409.1,2409.0,4.15101795]
[1750447236886,7.591,2409.1,2409.0,4.15101795]
[1750447237085,7.591,2409.1,2408.9,4.15120682]
[1750447237683,7.591,2409.1,2409.0,4.15110004]
[1750447238170,8.35584958,2409.1,2409.0,4.15110004]
[1750447238765,8.35608292,2409.1,2408.9,4.15120081]
[1750447239043,0.76508313,2409.0,2408.9,4.15120081]
[1750447239460,0.76508266,2409.0,2408.9,4.15120081]
[1750447239638,0.76507734,2409.0,2408.9,4.15120081]
[1750447240368,12.494,2408.8,2408.1,0.8279]
[1750447240670,2.5539,2408.4,2407.9,4.15282691]
[1750447240843,2.494,2408.2,2408.0,4.15272256]
[1750447241040,2.494,2408.2,2407.9,4.15298685]
[1750447241246,7.585,2408.1,2407.9,4.21349638]
[1750447241450,2.494,2408.6,2408.3,4.15219127]
[1750447241639,10.0,2408.4,2408.3,4.1523066]
[1750447241844,10.76431025,2408.4,2408.3,4.1523066]
[1750447242196,10.38215327,2408.4,2408.3,4.1523066]
[1750447242359,10.38210329,2408.4,2408.1,4.15257845]
[1750447242541,2.1779,2408.7,2408.2,4.15240391]
[1750447242542,18.34821307,2408.3,2408.2,4.15240391]
[1750447242741,17.9660369,2408.3,2408.2,4.15240391]
[1750447242947,17.584,2408.3,2408.2,4.15240391]
[1750447243172,10.0,2408.6,2408.3,4.1523066]
[1750447243472,19.701,2408.5,2408.4,4.15213419]
[1750447243691,19.7,2408.5,2408.4,4.15213419]
[1750447247105,22.194,2408.5,2408.4,4.15213419]
[1750447250402,14.612,2408.5,2408.4,4.15213419]
[1750447250701,22.186,2408.5,2408.4,4.15213419]
[1750447254608,19.692,2408.5,2408.4,4.21193419]
[1750447255110,19.692,2408.5,2408.4,4.15213419]
[1750447255677,20.07377061,2408.5,2408.4,4.15213419]
[1750447256380,19.692,2408.5,2408.4,4.15213419]
[1750447256576,22.186,2408.5,2408.1,2.2434]
[1750447256775,2.87556632,2408.4,2408.3,4.1523066]
[1750447257011,12.54155399,2408.4,2408.3,4.1523066]
[1750447257809,22.54165062,2408.4,2408.3,4.1523066]
[1750447258133,0.41720643,2409.5,2408.4,4.91389701]
[1750447258278,8.55656102,2409.2,2409.0,4.15107469]
[1750447258481,8.55656102,2409.2,2409.0,4.15093751]
[1750447258482,0.76350507,2409.1,2409.0,4.15093751]
[1750447258714,0.38175972,2409.1,2409.0,4.15093751]
[1750447258914,0.38175972,2409.1,2409.0,4.15110004]
[1750447258915,0.38184816,2409.1,2409.0,4.15110004]
[1750447259084,12.87586076,2409.1,2409.0,4.15110004]
[1750447259400,13.25767876,2409.1,2409.0,4.15110004]
[1750447259805,13.25768314,2409.1,2409.0,4.15110004]
[1750447260115,3.25768784,2409.1,2409.0,4.15110004]
[1750447260314,13.291,2409.3,2409.2,4.15075543]
[1750447260617,31.61578166,2409.3,2409.2,4.21055543]
[1750447260813,31.23389599,2409.3,2409.2,4.21055543]
[1750447261206,21.23389599,2409.3,2409.2,4.21055543]
[1750447261406,20.852,2409.3,2409.2,4.15075543]
[1750447261786,30.852,2409.3,2409.2,4.15075543]
[1750447262816,32.949,2409.3,2409.2,4.15075543]
[1750447263019,32.949,2409.3,2409.1,4.15092518]
[1750447263192,33.0088,2409.3,2409.1,4.15092316]
[1750447263622,0.7578,2409.2,2409.0,4.15099841]
[1750447263788,7.557,2409.1,2409.0,4.15099841]
[1750447265105,25.391,2409.3,2409.2,4.15075543]
[1750447265319,32.946,2409.3,2409.2,4.15075543]
[1750447266296,10.797,2409.3,2409.2,4.96985543]
[1750447266501,1.71817221,2410.0,2409.9,4.20934977]
[1750447266696,7.553,2410.0,2409.9,4.96864977]
[1750447266935,2.1,2410.3,2410.2,4.14903327]
[1750447267549,19.652,2410.3,2410.2,4.14903327]
[1750447267750,9.652,2410.3,2410.2,4.14903327]
[1750447267929,10.801,2410.4,2410.3,4.14886113]
[1750447268249,20.452,2410.4,2410.3,4.14886113]
[1750447268404,10.8174,2410.3,2410.2,4.14891221]
[1750447268804,10.0,2410.3,2410.2,4.14891221]
[1750447269040,10.801,2410.4,2410.3,4.14886113]
[1750447269247,22.9,2410.4,2410.3,4.14886113]
[1750447269599,30.449,2410.4,2410.3,4.14886113]
[1750447269804,20.801,2410.4,2410.3,4.14886113]
[1750447270022,30.447,2410.4,2410.3,4.14886113]
[1750447271135,12.099,2410.4,2410.3,4.14886113]
[1750447271437,9.644,2410.4,2410.3,5.03843846]
[1750447271615,7.545,2410.4,2410.3,5.03843846]
[1750447271860,2.099,2410.9,2410.8,4.14800066]
[1750447272125,9.644,2410.9,2410.8,4.14800066]
[1750447272698,19.644,2410.9,2410.8,4.14800066]
[1750447273330,17.542,2410.9,2410.8,4.95330066]
[1750447273525,17.542,2410.9,2410.6,4.14826983]
[1750447273717,10.0,2410.8,2410.2,0.8829]
[1750447273917,7.541,2410.7,2410.6,4.14834481]
[1750447274847,7.541,2410.7,2410.6,4.20814481]
[1750447275838,7.54,2410.7,2410.6,4.20814481]
[1750447276042,7.54,2410.7,2410.6,5.45867596]
[1750447276214,7.54,2410.7,2410.6,6.28177596]
[1750447276543,2.3239084,2411.1,2411.0,4.14765657]
[1750447276869,2.494,2410.8,2410.3,4.14875541]
[1750447277043,2.494,2410.6,2410.5,4.14850619]
[1750447277242,10.03,2410.6,2410.5,4.14850619]
[1750447277544,10.0898,2410.6,2410.4,4.14866357]
[1750447277743,4.593,2410.5,2410.3,4.14877385]
[1750447277921,10.029,2410.4,2410.3,4.14877385]
[1750447279062,7.535,2410.4,2410.3,4.14877385]
[1750447280223,10.029,2410.4,2410.3,4.14877385]
[1750447286270,7.527,2410.4,2410.3,4.14886113]
[1750447286776,2.081,2410.5,2410.4,4.20858901]
[1750447286973,9.604,2410.5,2410.4,5.00138901]
[1750447287522,2.081,2410.5,2410.4,5.00138901]
[1750447287764,9.603,2410.5,2410.4,5.00138901]
[1750447287977,1.0106084,2411.1,2410.4,5.00138901]
[1750447287978,0.2249084,2411.1,2411.0,4.14765657]
[1750447288128,9.8279084,2411.1,2411.0,4.14765657]
[1750447288330,9.8269084,2411.1,2411.0,4.14765657]
[1750447288572,9.8269084,2411.1,2411.0,4.20755657]
[1750447290270,9.8269084,2411.1,2411.0,4.14765657]
[1750447290627,12.70018417,2411.1,2410.5,0.7525]
[1750447290831,2.5507,2410.9,2410.8,4.14800066]
[1750447291054,10.011,2410.9,2410.8,4.14800066]
[1750447291461,10.39052087,2410.9,2410.8,4.14800066]
[1750447291634,10.39052624,2410.9,2410.8,4.14800066]
[1750447291968,10.011,2410.9,2410.8,4.14800066]
[1750447292541,10.011,2410.9,2410.3,0.8124]
[1750447292779,10.0677,2410.9,2410.7,4.14815923]
[1750447293147,10.0677,2410.9,2410.8,4.14800066]
[1750447293534,10.44825744,2410.9,2410.8,4.14800066]
[1750447294251,10.44825744,2410.9,2410.3,0.7525]
[1750447294570,2.494,2410.8,2410.7,4.14817272]
[1750447294753,2.87456863,2410.8,2410.7,4.14817272]
[1750447295958,2.87476789,2410.8,2410.7,4.14817272]
[1750447297179,2.87477311,2410.8,2410.7,4.14817272]
[1750447297540,2.8748955,2410.8,2410.7,4.14817272]
[1750447298170,2.87489554,2410.8,2410.7,4.14817272]
[1750447298575,2.87492502,2410.8,2410.7,4.14817272]
[1750447299076,2.494,2410.5,2410.0,0.8075]
[1750447299275,12.5507,2410.1,2409.8,4.1495822]
[1750447299487,2.494,2409.8,2409.2,0.8075]
[1750447299641,2.494,2409.6,2408.9,0.8674]
[1750447299846,11.19861824,2409.5,2409.3,4.15044254]
[1750447300158,12.93151824,2409.4,2409.2,4.15067126]
[1750447300356,10.37981824,2409.3,2409.2,4.15067126]
[1750447300563,10.76070302,2409.3,2409.1,4.1508323]
[1750447300774,2.494,2409.1,2408.8,4.15144399]
[1750447300959,13.33432519,2409.0,2408.7,4.15157084]
[1750447301164,2.494,2408.8,2408.7,4.15157084]
[1750447301358,2.87482622,2408.8,2408.7,4.15157084]
[1750447301905,0.38082622,2408.8,2408.7,4.15157084]
[1750447302087,7.504,2408.9,2408.8,4.1514447]
[1750447302487,7.504,2408.9,2408.6,4.151677]
[1750447302690,7.5607,2408.9,2408.7,4.15157514]
[1750447302873,7.5607,2408.9,2408.8,4.1514447]
[1750447303305,7.504,2408.9,2408.8,4.1514447]
[1750447307714,10.0,2408.7,2408.4,4.15204122]
[1750447308019,10.0,2408.7,2408.0,4.15282392]
[1750447308020,7.498,2408.6,2408.0,4.15282392]
[1750447308194,17.498,2408.6,2408.5,4.1519618]
[1750447309005,10.796,2408.9,2408.8,4.1514447]
[1750447309188,12.877,2408.9,2408.8,4.2091447]
[1750447309509,20.374,2408.9,2408.8,4.2091447]
[1750447309706,20.374,2408.9,2408.8,4.1514447]
[1750447310080,21.1792,2408.9,2408.2,0.7754]
[1750447310406,21.2373,2408.9,2408.6,4.15177644]
[1750447310792,21.2373,2408.9,2408.5,4.1519517]
[1750447311227,21.2373,2408.9,2408.8,4.1514447]
[1750447311228,21.7292,2408.9,2408.8,4.1514447]
[1750447311526,21.7292,2408.9,2408.6,4.1516964]
[1750447311724,0.0581,2408.8,2407.9,0.8331]
[1750447312022,0.0581,2408.8,2408.5,4.15189159]
[1750447312023,2.492,2408.6,2408.5,4.15189159]
[1750447315909,10.796,2408.9,2408.8,4.1514447]
[1750447316120,30.368,2408.9,2408.8,4.1514447]
[1750447319131,10.0,2408.8,2408.7,4.15151123]
[1750447321296,3.3074,2408.7,2408.5,4.15186297]
[1750447321502,9.975,2408.6,2408.4,4.1520179]
[1750447321979,14.12680868,2408.6,2408.1,4.90646583]
[1750447322230,14.12680868,2408.6,2408.0,4.152732]
[1750447322231,2.492,2408.4,2408.0,4.152732]
[1750447322444,2.5501,2408.2,2408.0,4.15273522]
[1750447322738,9.974,2408.1,2408.0,4.15273522]
[1750447322896,10.0,2408.0,2407.5,0.7539]
[1750447323108,3.3074,2407.8,2407.4,4.21155893]
[1750447323409,6.76634883,2408.3,2407.3,0.7539]
[1750447323410,0.7534,2408.4,2408.3,4.15222745]
[1750447323738,10.0,2408.4,2408.3,4.20992745]
[1750447323939,19.545,2408.4,2408.3,4.20992745]
[1750447324154,9.545,2408.4,2408.3,5.04616417]
[1750447324455,9.545,2408.4,2408.3,5.84626417]
[1750447324597,9.545,2408.4,2408.3,5.78856417]
[1750447324797,9.545,2408.4,2408.3,4.15222745]
[1750447324998,9.545,2408.4,2408.3,4.20992745]
[1750447325931,9.545,2408.4,2408.3,4.15222745]
[1750447326320,9.545,2408.4,2408.3,4.20992745]
[1750447328429,9.545,2408.4,2408.3,4.15222745]
[1750447328630,9.545,2408.4,2408.3,4.20992745]
[1750447331805,2.064,2408.4,2408.3,4.20992745]
[1750447332040,9.535,2408.4,2408.3,5.04616417]
[1750447332510,10.796,2408.9,2408.8,4.2091447]
[1750447332718,20.71114825,2408.9,2408.8,4.2091447]
[1750447333254,13.24113829,2408.9,2408.8,5.0236447]
[1750447333410,12.86,2408.9,2408.8,5.94116657]
[1750447333608,20.329,2408.9,2408.8,5.94116657]
[1750447334452,20.329,2408.9,2408.8,5.0236447]
[1750447335152,2.064,2408.9,2408.8,5.0236447]
[1750447335334,2.064,2409.4,2409.3,4.15058315]
[1750447335537,9.9123802,2409.4,2409.3,4.20828315]
[1750447335856,2.064,2409.4,2409.3,5.02278315]
[1750447336143,2.064,2409.4,2409.3,5.94013285]
[1750447336313,9.529,2409.4,2409.3,5.94013285]
[1750447336944,2.064,2409.9,2409.8,4.14956253]
[1750447337165,10.29200353,2409.9,2409.8,4.14956253]
[1750447337327,20.29201766,2409.9,2409.8,4.14956253]
[1750447337663,20.29200566,2409.9,2409.8,4.14956253]
[1750447338026,19.9105023,2409.9,2409.8,4.14956253]
[1750447338226,20.29199052,2409.9,2409.8,4.14956253]
[1750447338464,19.9105023,2409.9,2409.8,4.14956253]
[1750447339236,9.529,2409.9,2409.8,4.14956253]
[1750447340134,10.801,2410.0,2409.9,4.21044977]
[1750447340329,18.262,2410.0,2409.9,4.21044977]
[1750447340530,2.063,2410.2,2410.1,4.21010542]
[1750447340814,2.063,2410.2,2410.1,4.97120542]
[1750447341068,9.522,2410.2,2410.1,4.97120542]
[1750447341241,9.522,2410.2,2410.1,6.29821478]
[1750447341441,9.522,2410.2,2410.1,8.54161478]
[1750447342549,9.522,2410.2,2410.1,8.95116088]
[1750447343732,9.522,2410.2,2410.1,8.54161478]
[1750447343933,9.522,2410.2,2410.1,6.45350542]
[1750447344684,9.522,2410.2,2410.1,7.25380542]
[1750447345175,9.522,2410.2,2410.1,7.29529511]
[1750447345683,11.609,2411.0,2410.9,4.14782861]
[1750447345840,21.124,2411.0,2410.9,4.14782861]
[1750447346165,31.124,2411.0,2410.9,4.14782861]
[1750447346664,10.059,2410.9,2410.7,4.14808949]
[1750447347036,10.059,2410.9,2410.8,4.14800066]
[1750447347037,10.0,2410.9,2410.8,4.14800066]
[1750447347431,10.0,2410.9,2410.7,4.14808027]
[1750447347845,10.0,2410.9,2410.3,0.0609]
[1750447348057,10.0,2410.9,2410.7,4.14812176]
[1750447348256,10.0,2410.9,2410.8,4.14800066]
[1750447348456,10.0,2410.9,2410.7,4.14809145]
[1750447348654,0.059,2410.8,2410.6,4.14828246]
[1750447348860,7.447,2410.7,2410.6,4.14834481]
[1750447349840,0.7558,2410.6,2410.3,4.14875761]
[1750447350248,0.059,2410.5,2410.3,4.14875761]
[1750447350452,9.49,2410.4,2410.3,4.14875761]
[1750447351679,9.549,2410.4,2410.2,4.14891692]
[1750447352041,9.549,2410.4,2410.1,4.14906458]
[1750447352042,2.492,2410.3,2410.1,4.14906458]
[1750447352271,2.551,2410.3,2410.1,4.14906458]
[1750447352576,2.492,2410.3,2410.2,4.14903327]
[1750447353573,11.982,2410.4,2410.3,4.14886113]
[1750447357895,9.482,2410.4,2410.3,4.20976113]
[1750447358369,9.479,2410.4,2410.3,4.20976113]
[1750447358769,2.045,2410.4,2410.3,5.04564057]
[1750447358968,2.045,2410.4,2410.3,5.86342584]
[1750447359286,2.045,2410.4,2410.3,5.82194057]
[1750447360087,2.045,2410.4,2410.3,4.92516113]
[1750447360384,2.045,2410.4,2410.3,4.20976113]
[1750447363171,2.045,2410.4,2410.3,14.20976113]
[1750447364555,2.045,2410.4,2410.3,14.14886113]
[1750447364786,2.045,2410.4,2410.3,14.20976113]
[1750447365083,2.045,2410.4,2410.3,16.34761057]
[1750447365988,2.045,2410.4,2410.3,14.14886113]
[1750447366590,2.045,2410.4,2410.3,14.20976113]
[1750447367488,2.045,2410.4,2410.3,4.14886113]
[1750447367489,5.3127,2410.4,2410.3,4.14886113]
[1750447367693,5.69466354,2410.4,2410.3,4.14886113]
[1750447367893,5.3717,2410.4,2410.3,4.14886113]
[1750447368077,5.69467476,2410.4,2410.3,4.14886113]
[1750447368463,6.07759121,2410.4,2410.3,4.14886113]
[1750447368658,5.3127,2410.4,2410.3,4.14886113]
[1750447368856,6.07759402,2410.4,2410.3,4.14886113]
[1750447369264,6.07759433,2410.4,2410.3,4.14886113]
[1750447369459,6.07762367,2410.4,2410.2,4.1489662]
[1750447369782,2.492,2410.3,2410.2,4.1489662]
[1750447369984,2.87447029,2410.3,2410.2,4.1489662]
[1750447370185,2.87447981,2410.3,2410.2,4.1489662]
[1750447370389,3.31415963,2410.3,2410.2,4.1489662]
[1750447370568,3.25695963,2410.3,2410.2,4.1489662]
[1750447371574,2.492,2410.3,2410.2,4.1489662]
[1750447371775,3.25738247,2410.3,2410.2,4.1489662]
[1750447372153,3.25738348,2410.3,2410.2,4.1489662]
[1750447372273,3.2573854,2410.3,2410.2,4.1489662]
[1750447372475,2.492,2410.1,2409.8,4.149575]
[1750447372771,11.44161317,2410.0,2409.8,4.14958156]
[1750447372992,2.93189072,2409.9,2409.8,4.14958156]
[1750447373708,2.492,2409.9,2409.8,4.14958156]
[1750447374008,2.492,2410.2,2410.1,4.21130542]
[1750447374310,2.045,2410.4,2410.3,4.14886113]
[1750447374607,2.42722219,2410.4,2410.3,4.14886113]
[1750447374810,2.80944348,2410.4,2410.3,4.14886113]
[1750447375010,10.22344348,2410.4,2410.3,4.14886113]
[1750447375184,20.22344014,2410.4,2410.3,4.14886113]
[1750447375513,20.22343239,2410.4,2410.3,4.14886113]
[1750447375679,19.84121974,2410.4,2410.3,4.14886113]
[1750447375881,20.22350178,2410.4,2410.3,4.14886113]
[1750447376304,19.459,2410.4,2410.3,4.14886113]
[1750447376481,20.22378226,2410.4,2410.3,4.14886113]
[1750447376676,20.22384172,2410.4,2410.3,4.14886113]
[1750447377430,20.22397062,2410.4,2410.3,4.14886113]
[1750447377591,20.22397283,2410.4,2410.3,4.14886113]
[1750447377776,19.84148752,2410.4,2410.3,4.14886113]
[1750447377981,20.22425572,2410.4,2410.3,4.14886113]
[1750447378215,19.84162786,2410.4,2410.3,4.14886113]
[1750447378433,20.22436173,2410.4,2410.3,4.14886113]
[1750447378633,19.84178263,2410.4,2410.3,4.14886113]
[1750447378942,20.22456847,2410.4,2410.3,4.14886113]
[1750447379122,9.459,2410.4,2410.3,4.21096113]
[1750447379435,9.459,2410.4,2410.3,4.14886113]
[1750447379757,9.84199548,2410.4,2410.3,4.21096113]
[1750447380131,9.84199548,2410.4,2410.3,4.14886113]
[1750447380304,9.459,2410.4,2410.3,4.14886113]
[1750447380507,4.52,2410.7,2410.6,4.14834481]
[1750447380742,12.69308798,2410.7,2410.6,4.14834481]
[1750447380915,5.28608798,2410.7,2410.6,4.14834481]
[1750447381110,22.69308798,2410.7,2410.6,4.14834481]
[1750447381341,22.310073,2410.7,2410.6,4.14834481]
[1750447381647,12.492,2410.6,2410.4,4.1485309]
[1750447381854,7.407,2410.5,2410.4,4.1485309]
[1750447382308,9.899,2410.5,2410.4,4.1485309]
[1750447383618,9.899,2410.5,2410.4,4.9472309]
[1750447383817,9.899,2410.5,2410.4,4.1485309]
[1750447384023,9.899,2410.5,2410.3,4.14881565]
[1750447384224,10.7825,2410.5,2410.3,4.14881565]
[1750447385435,2.492,2410.3,2409.8,5.01035283]
[1750447385641,9.9502,2410.2,2410.1,4.14908572]
[1750447385853,9.893,2410.2,2410.1,4.14908572]
[1750447387247,2.492,2410.4,2410.0,4.14937687]
[1750447387540,2.028,2410.4,2410.3,4.21096113]
[1750447387740,9.427,2410.4,2410.3,4.21096113]
[1750447387943,2.028,2410.4,2410.3,4.21096113]
[1750447388145,0.8263,2410.5,2410.4,4.14868901]
[1750447388309,0.8263,2410.5,2410.4,5.46165297]
[1750447388710,0.8263,2410.5,2410.4,5.39955297]
[1750447389057,10.7153,2410.5,2410.4,4.14868901]
[1750447389206,10.7153,2410.5,2410.3,4.14886113]
[1750447389207,10.7153,2410.5,2410.3,4.14877101]
[1750447389410,4.5772,2410.4,2410.3,4.14877101]
[1750447389650,4.52,2410.4,2410.3,4.14877101]
[1750447390447,4.52,2410.4,2410.2,4.14900777]
[1750447390448,12.492,2410.6,2410.5,4.1485169]
[1750447390630,22.67994909,2410.6,2410.5,4.1485169]
[1750447390816,22.67994909,2410.6,2410.4,4.14860056]
[1750447391018,21.915,2410.6,2410.4,4.14860056]
[1750447391218,21.915,2410.6,2410.5,4.1485169]
[1750447391528,22.73735637,2410.6,2410.0,4.21147656]
[1750447391715,2.5492,2410.4,2410.2,4.14896414]
[1750447391915,7.393,2410.3,2410.2,4.14896414]
[1750447392740,7.393,2410.3,2410.2,4.14903327]
[1750447393525,7.393,2410.3,2410.1,4.14916428]
[1750447393725,9.9422,2410.3,2410.1,4.14916428]
[1750447394239,9.885,2410.3,2410.2,4.14903327]
[1750447394431,10.26780441,2410.3,2410.2,4.14903327]
[1750447394862,9.885,2410.3,2410.2,4.14903327]
[1750447395035,10.26782009,2410.3,2410.2,4.14903327]
[1750447395365,10.26782126,2410.3,2410.2,4.14903327]
[1750447395656,10.26782,2410.3,2410.2,4.14903327]
[1750447396229,10.26789221,2410.3,2410.2,4.14903327]
[1750447396630,10.26789573,2410.3,2410.2,4.14903327]
[1750447397038,10.6507928,2410.3,2410.1,4.14912658]
[1750447397305,9.6922,2410.3,2410.1,4.14912658]
[1750447397912,9.6922,2410.3,2409.3,0.0621]
[1750447397913,12.492,2410.2,2409.3,0.0621]
[1750447398061,12.5492,2410.0,2409.3,4.2126112]
[1750447398403,12.5492,2409.8,2409.7,4.14989417]
[1750447398694,12.5492,2409.8,2409.6,4.14996953]
[1750447398897,9.878,2409.7,2409.6,4.14996953]
[1750447399204,10.0578,2409.4,2408.9,4.15127236]
[1750447399360,10.0578,2409.4,2409.1,4.21262773]
[1750447399361,10.0,2409.2,2409.1,4.21262773]
[1750447399560,10.0,2409.2,2409.1,4.15092773]
[1750447401700,12.492,2409.2,2409.1,4.15092773]
[1750447401886,10.0,2409.2,2409.1,4.15092773]
[1750447402755,9.414,2409.3,2409.2,4.15075543]
[1750447402956,19.414,2409.3,2409.2,4.15075543]
[1750447406701,9.414,2409.3,2409.2,4.21245543]
[1750447406903,12.012,2409.7,2409.2,4.98708344]
[1750447407205,10.0,2409.5,2409.4,4.15030044]
[1750447407558,10.0,2409.5,2409.4,4.15041089]
[1750447408393,10.0578,2409.5,2409.4,4.15041089]
[1750447408767,10.0578,2409.5,2409.3,4.15051258]
[1750447408975,17.378,2409.4,2409.2,4.15062304]
[1750447409180,10.0,2409.4,2409.3,4.15058315]
[1750447409379,17.376,2409.4,2409.3,4.15058315]
[1750447410400,2.012,2409.7,2409.6,4.2117664]
[1750447410578,9.387,2409.7,2409.6,4.2117664]
[1750447410765,19.387,2409.7,2409.6,4.2117664]